[Event "*** Titled Tuesday Blitz"]
[Site "Chess.com"]
[Date "2021.02.16"]
[Round "5"]
[White "AlexPapasimakopoulos"]
[Black "Gusarov91"]
[Result "1-0"]
[WhiteElo "2624"]
[BlackElo "2420"]
[TimeControl "180+1"]
[EndTime "10:59:11 PST"]
[Termination "AlexPapasimakopoulos won by resignation"]

1. d4 {[%clk 0:03:00.9]} 1... Nf6 {[%clk 0:02:59.8]} 2. c4 {[%clk 0:03:00.8]}
2... g6 {[%clk 0:02:59.8]} 3. Nc3 {[%clk 0:03:01]} 3... d5 {[%clk 0:03:00.2]} 4.
Nf3 {[%clk 0:03:01.2]} 4... Bg7 {[%clk 0:03:00]} 5. Qb3 {[%clk 0:02:59]} 5...
dxc4 {[%clk 0:02:59.8]} 6. Qxc4 {[%clk 0:02:59.9]} 6... O-O {[%clk 0:03:00.3]}
7. e4 {[%clk 0:03:00.2]} 7... a6 {[%clk 0:03:00.2]} 8. Be2 {[%clk 0:03:00.4]}
8... b5 {[%clk 0:03:00.6]} 9. Qb3 {[%clk 0:03:00.6]} 9... Nc6 {[%clk 0:02:59.9]}
10. d5 {[%clk 0:02:57.4]} 10... Na5 {[%clk 0:02:58.2]} 11. Qb4 {[%clk 0:02:54]}
11... c6 {[%clk 0:02:54]} 12. Be3 {[%clk 0:02:51.1]} 12... cxd5 {[%clk 0:02:52]}
13. exd5 {[%clk 0:02:48.8]} 13... Bg4 {[%clk 0:02:37]} 14. O-O {[%clk
0:02:41.9]} 14... Bxf3 {[%clk 0:02:37.2]} 15. Bxf3 {[%clk 0:02:42.8]} 15... Nc4
{[%clk 0:02:37.5]} 16. Rfe1 {[%clk 0:02:35.5]} 16... Nxe3 {[%clk 0:02:30.4]} 17.
Rxe3 {[%clk 0:02:36.4]} 17... Qd6 {[%clk 0:02:30.3]} 18. a3 {[%clk 0:02:21]}
18... Rfe8 {[%clk 0:02:20]} 19. Rae1 {[%clk 0:02:19]} 19... Qxb4 {[%clk
0:02:14.6]} 20. axb4 {[%clk 0:02:19.9]} 20... Ra7 {[%clk 0:02:15.1]} 21. d6
{[%clk 0:02:05.7]} 21... e6 {[%clk 0:02:15.3]} 22. Ra1 {[%clk 0:02:05.9]} 22...
Rb8 {[%clk 0:01:59.5]} 23. Rd3 {[%clk 0:01:59.7]} 23... Nd7 {[%clk 0:01:58.1]}
24. Rd2 {[%clk 0:01:45]} 24... Bxc3 {[%clk 0:01:41.6]} 25. bxc3 {[%clk
0:01:44.4]} 25... Rc8 {[%clk 0:01:41.8]} 26. Ra3 {[%clk 0:01:40.9]} 26... Ne5
{[%clk 0:01:40.9]} 27. Be2 {[%clk 0:01:41]} 27... Rca8 {[%clk 0:01:28]} 28. f4
{[%clk 0:01:38.3]} 28... Nd7 {[%clk 0:01:22.9]} 29. Rda2 {[%clk 0:01:35.8]}
29... Rc8 {[%clk 0:01:15.3]} 30. Bxb5 {[%clk 0:01:33.3]} 30... Nf6 {[%clk
0:01:07.7]} 31. d7 {[%clk 0:01:04.1]} 31... Nxd7 {[%clk 0:01:05.3]} 32. Rxa6
{[%clk 0:00:58.6]} 32... Rxa6 {[%clk 0:01:03.3]} 33. Rxa6 {[%clk 0:00:59.5]}
33... Nf6 {[%clk 0:01:00]} 34. Rc6 {[%clk 0:00:59]} 34... Rb8 {[%clk 0:00:58.7]}
35. Bd3 {[%clk 0:00:55.2]} 35... Nd5 {[%clk 0:00:58.9]} 36. g3 {[%clk
0:00:53.3]} 36... h5 {[%clk 0:00:56.7]} 37. Be4 {[%clk 0:00:51.4]} 37... Nf6
{[%clk 0:00:56.5]} 38. Bf3 {[%clk 0:00:50.4]} 38... h4 {[%clk 0:00:52.4]} 39.
Kf2 {[%clk 0:00:50.2]} 39... hxg3+ {[%clk 0:00:52.1]} 40. hxg3 {[%clk
0:00:51.1]} 40... Kg7 {[%clk 0:00:52.3]} 41. Ke3 {[%clk 0:00:46.9]} 41... Nd7
{[%clk 0:00:51.1]} 42. Kd4 {[%clk 0:00:45.6]} 42... Kf6 {[%clk 0:00:48]} 43. Rc7
{[%clk 0:00:44.1]} 43... e5+ {[%clk 0:00:42.6]} 44. Ke3 {[%clk 0:00:29.5]} 44...
Rd8 {[%clk 0:00:40.6]} 45. b5 {[%clk 0:00:25.8]} 45... exf4+ {[%clk 0:00:40.8]}
46. gxf4 {[%clk 0:00:25.9]} 46... Re8+ {[%clk 0:00:41.1]} 47. Kd4 {[%clk
0:00:24]} 47... Rd8 {[%clk 0:00:39]} 48. Bd5 {[%clk 0:00:23.1]} 48... Kf5 {[%clk
0:00:35.7]} 49. Bxf7 {[%clk 0:00:20.1]} 49... Ne5+ {[%clk 0:00:23.8]} 50. Bd5
{[%clk 0:00:19]} 50... Kxf4 {[%clk 0:00:23]} 51. c4 {[%clk 0:00:18.6]} 51...
Nf3+ {[%clk 0:00:22.3]} 52. Kc5 {[%clk 0:00:18.3]} 52... Ne5 {[%clk 0:00:23]}
53. b6 {[%clk 0:00:17.9]} 53... g5 {[%clk 0:00:22.8]} 54. b7 {[%clk 0:00:17.7]}
54... Nd3+ {[%clk 0:00:20.8]} 55. Kb6 {[%clk 0:00:16.6]} 55... Ne5 {[%clk
0:00:16.2]} 56. Rc8 {[%clk 0:00:16.6]} 56... Rd6+ {[%clk 0:00:14.3]} 57. Kc7
{[%clk 0:00:16.1]} 57... Rd7+ {[%clk 0:00:14.7]} 58. Kb6 {[%clk 0:00:16.3]}
58... Rd6+ {[%clk 0:00:15]} 59. Ka7 {[%clk 0:00:15.6]} 59... Rd7 {[%clk
0:00:14.9]} 60. Ka8 {[%clk 0:00:15.1]} 60... Rxb7 {[%clk 0:00:12.6]} 61. Kxb7
{[%clk 0:00:15]} 61... g4 {[%clk 0:00:13.5]} 62. Rf8+ {[%clk 0:00:15.2]} 62...
Ke3 {[%clk 0:00:13.1]} 63. c5 {[%clk 0:00:15.7]} 63... Kd4 {[%clk 0:00:12.8]}
64. c6 {[%clk 0:00:15.7]} 64... Kxd5 {[%clk 0:00:12.7]} 65. c7 {[%clk
0:00:16.2]} 65... Nd7 {[%clk 0:00:11.9]} 66. Rd8 {[%clk 0:00:16]} 66... Kd6
{[%clk 0:00:11.8]} 67. Rxd7+ {[%clk 0:00:16.5]} 67... Kxd7 {[%clk 0:00:11.9]}
68. c8=Q+ {[%clk 0:00:17.4]} 68... Kd6 {[%clk 0:00:12.8]} 69. Qxg4 {[%clk
0:00:18]} 1-0

[Event "*** Titled Tuesday Blitz"]
[Site "Chess.com"]
[Date "2021.02.16"]
[Round "5"]
[White "woodhy"]
[Black "bennyficial"]
[Result "1-0"]
[WhiteElo "2469"]
[BlackElo "2221"]
[TimeControl "180+1"]
[EndTime "10:59:19 PST"]
[Termination "woodhy won by resignation"]

1. e4 {[%clk 0:03:00.9]} 1... c5 {[%clk 0:03:00]} 2. Nf3 {[%clk 0:02:58.7]} 2...
Nc6 {[%clk 0:03:00.4]} 3. d4 {[%clk 0:02:56.5]} 3... cxd4 {[%clk 0:03:01.3]} 4.
Nxd4 {[%clk 0:02:57]} 4... Nf6 {[%clk 0:03:01.6]} 5. Nc3 {[%clk 0:02:53]} 5...
e5 {[%clk 0:03:01.6]} 6. Ndb5 {[%clk 0:02:51.1]} 6... d6 {[%clk 0:03:02.1]} 7.
Bg5 {[%clk 0:02:49]} 7... a6 {[%clk 0:03:01.9]} 8. Na3 {[%clk 0:02:46.6]} 8...
b5 {[%clk 0:03:02.1]} 9. Bxf6 {[%clk 0:02:45.3]} 9... gxf6 {[%clk 0:03:01.7]}
10. Nd5 {[%clk 0:02:45.6]} 10... Bg7 {[%clk 0:02:53.5]} 11. c3 {[%clk
0:02:39.9]} 11... f5 {[%clk 0:02:51.9]} 12. Bd3 {[%clk 0:02:35.4]} 12... Ne7
{[%clk 0:02:48.3]} 13. Ne3 {[%clk 0:02:24]} 13... f4 {[%clk 0:02:34.3]} 14. Nf1
{[%clk 0:02:07.6]} 14... d5 {[%clk 0:02:20.4]} 15. Nc2 {[%clk 0:02:02.8]} 15...
Bb7 {[%clk 0:02:13.1]} 16. Qe2 {[%clk 0:02:01.8]} 16... dxe4 {[%clk 0:01:46.8]}
17. Bxe4 {[%clk 0:02:02.7]} 17... Bxe4 {[%clk 0:01:46.6]} 18. Qxe4 {[%clk
0:02:02.2]} 18... f5 {[%clk 0:01:43.6]} 19. Qf3 {[%clk 0:01:50.5]} 19... O-O
{[%clk 0:01:36]} 20. Rd1 {[%clk 0:01:49.4]} 20... Qc7 {[%clk 0:01:20]} 21. Nd2
{[%clk 0:01:49]} 21... e4 {[%clk 0:01:18.1]} 22. Qh3 {[%clk 0:01:48.9]} 22...
Ng6 {[%clk 0:01:00.1]} 23. O-O {[%clk 0:01:46.2]} 23... f3 {[%clk 0:00:53.4]}
24. g3 {[%clk 0:01:18.7]} 24... Rf6 {[%clk 0:00:53.5]} 25. Ne3 {[%clk
0:01:14.4]} 25... Qf7 {[%clk 0:00:48.3]} 26. Nb3 {[%clk 0:01:09.3]} 26... Ne5
{[%clk 0:00:34]} 27. Rd5 {[%clk 0:01:06]} 27... Re8 {[%clk 0:00:32.4]} 28. Nd4
{[%clk 0:00:51.3]} 28... f4 {[%clk 0:00:30]} 29. gxf4 {[%clk 0:00:41.4]} 29...
Rxf4 {[%clk 0:00:28.4]} 30. Kh1 {[%clk 0:00:37.3]} 30... Rf8 {[%clk 0:00:25.5]}
31. Rg1 {[%clk 0:00:36.7]} 31... Ng6 {[%clk 0:00:25.6]} 32. Ne6 {[%clk
0:00:31.1]} 32... Rh4 {[%clk 0:00:18.4]} 33. Qxh4 {[%clk 0:00:15.8]} 33... Nxh4
{[%clk 0:00:17.5]} 34. Rxg7+ {[%clk 0:00:15.8]} 34... Qxg7 {[%clk 0:00:17.7]}
35. Nxg7 {[%clk 0:00:16.7]} 35... Kxg7 {[%clk 0:00:17.3]} 36. Re5 {[%clk
0:00:15.8]} 36... Rd8 {[%clk 0:00:16]} 37. Rxe4 {[%clk 0:00:15.4]} 37... Ng6
{[%clk 0:00:15.1]} 38. h4 {[%clk 0:00:15.5]} 38... Rd2 {[%clk 0:00:15.2]} 39. h5
{[%clk 0:00:15.9]} 39... Nf8 {[%clk 0:00:15]} 40. Rg4+ {[%clk 0:00:15.6]} 40...
Kf7 {[%clk 0:00:15.2]} 41. Rf4+ {[%clk 0:00:15.6]} 41... Kg7 {[%clk 0:00:15.3]}
42. h6+ {[%clk 0:00:14.1]} 42... Kg8 {[%clk 0:00:14.9]} 43. Nf5 {[%clk
0:00:13.1]} 43... Ng6 {[%clk 0:00:15]} 44. Rxf3 {[%clk 0:00:12.4]} 44... Rxb2
{[%clk 0:00:15.5]} 45. Nd4 {[%clk 0:00:06.8]} 45... Rxa2 {[%clk 0:00:14.3]} 46.
Rf6 {[%clk 0:00:07.4]} 46... Rd2 {[%clk 0:00:13.7]} 47. Rxa6 {[%clk 0:00:06.6]}
47... b4 {[%clk 0:00:13.7]} 48. Nf3 {[%clk 0:00:05.8]} 48... Rd1+ {[%clk
0:00:12.4]} 49. Kg2 {[%clk 0:00:05.5]} 49... bxc3 {[%clk 0:00:13.3]} 50. Rc6
{[%clk 0:00:05.6]} 50... Rd3 {[%clk 0:00:13.1]} 51. Ng5 {[%clk 0:00:05]} 51...
Nf8 {[%clk 0:00:09.2]} 52. Rc7 {[%clk 0:00:02.9]} 52... Ng6 {[%clk 0:00:08.9]}
53. Rg7+ {[%clk 0:00:02.4]} 53... Kf8 {[%clk 0:00:08.9]} 54. Nxh7+ {[%clk
0:00:03.3]} 54... Ke8 {[%clk 0:00:08.7]} 55. Rc7 {[%clk 0:00:04.2]} 55... Ne5
{[%clk 0:00:07.6]} 56. Nf6+ {[%clk 0:00:03.8]} 56... Kd8 {[%clk 0:00:07.4]} 57.
h7 {[%clk 0:00:04.7]} 57... Ng6 {[%clk 0:00:05.4]} 58. Rc4 {[%clk 0:00:01.2]}
58... Rd6 {[%clk 0:00:03.3]} 59. Ne4 {[%clk 0:00:02.1]} 59... Re6 {[%clk
0:00:03.1]} 60. Rd4+ {[%clk 0:00:02.7]} 60... Ke8 {[%clk 0:00:02.9]} 61. Nxc3
{[%clk 0:00:03.6]} 61... Rf6 {[%clk 0:00:02.9]} 62. Rg4 {[%clk 0:00:04.5]} 62...
Nf4+ {[%clk 0:00:02.9]} 63. Rxf4 {[%clk 0:00:04.4]} 63... Rg6+ {[%clk
0:00:03.6]} 64. Kf3 {[%clk 0:00:03.8]} 64... Rh6 {[%clk 0:00:04.2]} 65. Re4+
{[%clk 0:00:04.7]} 65... Kd7 {[%clk 0:00:04.2]} 66. Rf4 {[%clk 0:00:05.6]} 66...
Rxh7 {[%clk 0:00:04.5]} 67. Ne4 {[%clk 0:00:06.5]} 67... Kc7 {[%clk 0:00:05.2]}
68. Nf6 {[%clk 0:00:07.4]} 68... Kd6 {[%clk 0:00:04.9]} 69. Nxh7 {[%clk
0:00:07.4]} 1-0

[Event "*** Titled Tuesday Blitz"]
[Site "Chess.com"]
[Date "2021.02.16"]
[Round "5"]
[White "crazy_but_lazy"]
[Black "QuintilianoR"]
[Result "0-1"]
[WhiteElo "2500"]
[BlackElo "2705"]
[TimeControl "180+1"]
[EndTime "10:59:22 PST"]
[Termination "QuintilianoR won by resignation"]

1. e4 {[%clk 0:02:56.2]} 1... c5 {[%clk 0:02:59.2]} 2. Nf3 {[%clk 0:02:53.9]}
2... d6 {[%clk 0:02:58.8]} 3. d4 {[%clk 0:02:52.6]} 3... cxd4 {[%clk 0:02:59.7]}
4. Nxd4 {[%clk 0:02:53.5]} 4... Nf6 {[%clk 0:03:00.3]} 5. Nc3 {[%clk 0:02:53.4]}
5... a6 {[%clk 0:03:00.8]} 6. g3 {[%clk 0:02:52.2]} 6... e5 {[%clk 0:03:00.6]}
7. Nb3 {[%clk 0:02:33.2]} 7... Be7 {[%clk 0:03:00.3]} 8. Bg2 {[%clk 0:02:32.5]}
8... O-O {[%clk 0:03:00.2]} 9. O-O {[%clk 0:02:32.6]} 9... b5 {[%clk 0:03:00.5]}
10. a4 {[%clk 0:02:23.6]} 10... b4 {[%clk 0:03:00.6]} 11. Nd5 {[%clk 0:02:24.2]}
11... Nxd5 {[%clk 0:03:00.9]} 12. Qxd5 {[%clk 0:02:24.9]} 12... Ra7 {[%clk
0:03:01.4]} 13. Be3 {[%clk 0:02:24.1]} 13... Be6 {[%clk 0:03:01.7]} 14. Qd2
{[%clk 0:02:23.2]} 14... Rb7 {[%clk 0:03:00.5]} 15. Rfd1 {[%clk 0:02:19.1]}
15... a5 {[%clk 0:02:43.3]} 16. h3 {[%clk 0:01:39.5]} 16... Qc7 {[%clk
0:02:32.9]} 17. f4 {[%clk 0:01:38.3]} 17... f6 {[%clk 0:02:31.4]} 18. f5 {[%clk
0:01:15.1]} 18... Bf7 {[%clk 0:02:29.8]} 19. g4 {[%clk 0:01:15.7]} 19... Nd7
{[%clk 0:02:26.5]} 20. Qf2 {[%clk 0:01:11.2]} 20... Ra8 {[%clk 0:02:12.9]} 21.
Bf1 {[%clk 0:00:55.7]} 21... Nb6 {[%clk 0:01:59.8]} 22. Nd2 {[%clk 0:00:43.8]}
22... d5 {[%clk 0:01:49.5]} 23. exd5 {[%clk 0:00:34.3]} 23... Nxd5 {[%clk
0:01:49.1]} 24. Ne4 {[%clk 0:00:34.1]} 24... Nxe3 {[%clk 0:01:43.5]} 25. Qxe3
{[%clk 0:00:35]} 25... Rd8 {[%clk 0:01:35.6]} 26. c3 {[%clk 0:00:20.1]} 26...
bxc3 {[%clk 0:01:22.7]} 27. Qxc3 {[%clk 0:00:21]} 27... Qb6+ {[%clk 0:01:17.9]}
28. Kh1 {[%clk 0:00:13.9]} 28... Rc7 {[%clk 0:01:13.3]} 29. Rxd8+ {[%clk
0:00:13.3]} 29... Bxd8 {[%clk 0:01:14.2]} 30. Qd2 {[%clk 0:00:12.5]} 30... Be7
{[%clk 0:01:11.9]} 31. Rc1 {[%clk 0:00:11.8]} 31... Rxc1 {[%clk 0:00:46]} 32.
Qxc1 {[%clk 0:00:12.7]} 32... h6 {[%clk 0:00:40.5]} 33. Bc4 {[%clk 0:00:10.8]}
33... Bxc4 {[%clk 0:00:40.1]} 34. Qxc4+ {[%clk 0:00:11.7]} 34... Kh7 {[%clk
0:00:40.6]} 35. b3 {[%clk 0:00:11]} 35... Qe3 {[%clk 0:00:38.7]} 36. Kg2 {[%clk
0:00:11.1]} 36... Bd8 {[%clk 0:00:30.3]} 37. Qf7 {[%clk 0:00:04.2]} 37... Qxe4+
{[%clk 0:00:29.8]} 38. Kg3 {[%clk 0:00:04.3]} 38... Qf4+ {[%clk 0:00:26.8]} 39.
Kg2 {[%clk 0:00:04.2]} 39... Qd2+ {[%clk 0:00:26.9]} 40. Kg3 {[%clk 0:00:04]}
40... Qd6 {[%clk 0:00:24.8]} 41. Qg6+ {[%clk 0:00:03.9]} 41... Kg8 {[%clk
0:00:25.2]} 42. Qe8+ {[%clk 0:00:04.8]} 42... Qf8 {[%clk 0:00:25.5]} 43. Qe6+
{[%clk 0:00:05.7]} 43... Kh8 {[%clk 0:00:26.1]} 44. h4 {[%clk 0:00:06.1]} 44...
Bc7 {[%clk 0:00:24.9]} 45. Kh3 {[%clk 0:00:05.2]} 45... Qd8 {[%clk 0:00:22.5]}
46. g5 {[%clk 0:00:04.6]} 46... hxg5 {[%clk 0:00:21.6]} 47. hxg5 {[%clk
0:00:04.6]} 47... Qd3+ {[%clk 0:00:21.8]} 48. Kg4 {[%clk 0:00:04.9]} 48... Qe2+
{[%clk 0:00:20.6]} 49. Kh4 {[%clk 0:00:05.4]} 49... Qh2+ {[%clk 0:00:20.5]} 50.
Kg4 {[%clk 0:00:05.5]} 50... Qf4+ {[%clk 0:00:20.8]} 51. Kh3 {[%clk 0:00:04.9]}
51... Qxg5 {[%clk 0:00:20.6]} 52. Qc8+ {[%clk 0:00:05.7]} 52... Kh7 {[%clk
0:00:21.1]} 53. Qxc7 {[%clk 0:00:06.6]} 53... Qxf5+ {[%clk 0:00:22]} 54. Kg2
{[%clk 0:00:06.1]} 54... Qe4+ {[%clk 0:00:20.5]} 55. Kh2 {[%clk 0:00:05.5]}
55... Qe2+ {[%clk 0:00:20.4]} 56. Kg1 {[%clk 0:00:04.9]} 56... Qe3+ {[%clk
0:00:20.6]} 57. Kg2 {[%clk 0:00:05.3]} 57... Qxb3 {[%clk 0:00:20.5]} 58. Qxa5
{[%clk 0:00:05.9]} 58... Qc2+ {[%clk 0:00:19.9]} 59. Kh3 {[%clk 0:00:05.9]}
59... Qf5+ {[%clk 0:00:19.8]} 60. Kg2 {[%clk 0:00:05.6]} 60... Qg4+ {[%clk
0:00:20.3]} 61. Kf2 {[%clk 0:00:05.7]} 61... e4 {[%clk 0:00:21.2]} 62. Qc5
{[%clk 0:00:03.3]} 62... Qf3+ {[%clk 0:00:21.2]} 63. Kg1 {[%clk 0:00:03.6]}
63... e3 {[%clk 0:00:19.6]} 64. Qc2+ {[%clk 0:00:02.4]} 64... g6 {[%clk
0:00:19]} 65. Qc7+ {[%clk 0:00:03]} 65... Kh6 {[%clk 0:00:19.4]} 66. Qh2+ {[%clk
0:00:03.7]} 66... Kg5 {[%clk 0:00:19.4]} 67. Qc7 {[%clk 0:00:02.5]} 67... Qf2+
{[%clk 0:00:19]} 68. Kh1 {[%clk 0:00:03.2]} 68... e2 {[%clk 0:00:19]} 69. Qc5+
{[%clk 0:00:03.8]} 69... Qxc5 {[%clk 0:00:18.2]} 0-1

[Event "*** Titled Tuesday Blitz"]
[Site "Chess.com"]
[Date "2021.02.16"]
[Round "5"]
[White "korbul"]
[Black "Vamostodorecto"]
[Result "1-0"]
[WhiteElo "2593"]
[BlackElo "2421"]
[TimeControl "180+1"]
[EndTime "10:59:24 PST"]
[Termination "korbul won by resignation"]

1. d4 {[%clk 0:03:00.9]} 1... Nf6 {[%clk 0:02:59.1]} 2. c4 {[%clk 0:03:00.1]}
2... c5 {[%clk 0:02:58.3]} 3. d5 {[%clk 0:02:59.7]} 3... e6 {[%clk 0:02:58.5]}
4. Nc3 {[%clk 0:02:59.3]} 4... exd5 {[%clk 0:02:58.7]} 5. cxd5 {[%clk
0:02:59.5]} 5... d6 {[%clk 0:02:59.4]} 6. e4 {[%clk 0:02:59.6]} 6... g6 {[%clk
0:03:00]} 7. f3 {[%clk 0:02:59.9]} 7... Bg7 {[%clk 0:03:00.6]} 8. Bg5 {[%clk
0:02:59.7]} 8... O-O {[%clk 0:03:00.7]} 9. Qd2 {[%clk 0:02:59.5]} 9... a6 {[%clk
0:02:54.2]} 10. a4 {[%clk 0:02:58.9]} 10... Qa5 {[%clk 0:02:41.5]} 11. Ra3
{[%clk 0:02:57.8]} 11... Nbd7 {[%clk 0:02:36.2]} 12. Nh3 {[%clk 0:02:57]} 12...
Ne5 {[%clk 0:02:27.8]} 13. Nf2 {[%clk 0:02:56.4]} 13... Re8 {[%clk 0:02:06.6]}
14. Be2 {[%clk 0:02:55.6]} 14... Bd7 {[%clk 0:01:59.1]} 15. O-O {[%clk
0:02:52.6]} 15... Qb4 {[%clk 0:01:32.1]} 16. a5 {[%clk 0:02:49.7]} 16... Nc4
{[%clk 0:01:25.8]} 17. Bxc4 {[%clk 0:02:48.9]} 17... Qxc4 {[%clk 0:01:26.7]} 18.
Rc1 {[%clk 0:02:43.4]} 18... Qd4 {[%clk 0:01:23.6]} 19. Be3 {[%clk 0:02:06.5]}
19... Qxd2 {[%clk 0:01:21.7]} 20. Bxd2 {[%clk 0:02:06.3]} 20... Bb5 {[%clk
0:01:17.1]} 21. Na4 {[%clk 0:02:00.5]} 21... Nd7 {[%clk 0:01:10.3]} 22. Bc3
{[%clk 0:01:55.2]} 22... Bxa4 {[%clk 0:01:01.5]} 23. Rxa4 {[%clk 0:01:51.8]}
23... Ne5 {[%clk 0:01:00.5]} 24. f4 {[%clk 0:01:39.3]} 24... Bh6 {[%clk
0:00:57.5]} 25. Bd2 {[%clk 0:01:32.9]} 25... Rac8 {[%clk 0:00:44.8]} 26. Rc2
{[%clk 0:01:19.4]} 26... Nd7 {[%clk 0:00:41.7]} 27. g3 {[%clk 0:01:05.1]} 27...
f5 {[%clk 0:00:38.1]} 28. Bc3 {[%clk 0:00:52]} 28... Bg7 {[%clk 0:00:36.1]} 29.
Kg2 {[%clk 0:00:48.2]} 29... Bxc3 {[%clk 0:00:32.5]} 30. bxc3 {[%clk 0:00:47.1]}
30... Nf6 {[%clk 0:00:30.4]} 31. exf5 {[%clk 0:00:39.8]} 31... Nxd5 {[%clk
0:00:30.6]} 32. Rb2 {[%clk 0:00:34.8]} 32... Nxc3 {[%clk 0:00:23.4]} 33. Rc4
{[%clk 0:00:33.3]} 33... Nb5 {[%clk 0:00:20.8]} 34. fxg6 {[%clk 0:00:32.6]}
34... hxg6 {[%clk 0:00:21.7]} 35. Rd2 {[%clk 0:00:29]} 35... Re3 {[%clk
0:00:19.8]} 36. Ng4 {[%clk 0:00:27.4]} 36... Ra3 {[%clk 0:00:18.3]} 37. Nf6+
{[%clk 0:00:26.4]} 37... Kf7 {[%clk 0:00:18]} 38. Nd5 {[%clk 0:00:26]} 38...
Rxa5 {[%clk 0:00:16.2]} 39. g4 {[%clk 0:00:24.9]} 39... Re8 {[%clk 0:00:15.7]}
40. f5 {[%clk 0:00:20.7]} 40... gxf5 {[%clk 0:00:15.3]} 41. Rf4 {[%clk
0:00:20.6]} 41... Re4 {[%clk 0:00:09.7]} 42. Rxf5+ {[%clk 0:00:20.3]} 42... Ke6
{[%clk 0:00:08.1]} 43. Nf4+ {[%clk 0:00:17.5]} 43... Kd7 {[%clk 0:00:07.8]} 44.
Kf3 {[%clk 0:00:17.4]} 44... Rd4 {[%clk 0:00:07]} 45. Re2 {[%clk 0:00:16.4]}
45... Ra3+ {[%clk 0:00:06.6]} 46. Kg2 {[%clk 0:00:16.1]} 46... Kc6 {[%clk
0:00:04.5]} 47. g5 {[%clk 0:00:16]} 47... Raa4 {[%clk 0:00:02.4]} 48. Ne6 {[%clk
0:00:14.6]} 48... Nc3 {[%clk 0:00:03.3]} 49. Nxd4+ {[%clk 0:00:13.6]} 49... cxd4
{[%clk 0:00:02.6]} 50. Rd2 {[%clk 0:00:13.1]} 50... Ne4 {[%clk 0:00:03.2]} 51.
Rd3 {[%clk 0:00:12.7]} 51... Ra2+ {[%clk 0:00:02.9]} 52. Kf3 {[%clk 0:00:12.8]}
52... Nc5 {[%clk 0:00:03.1]} 53. Rxd4 {[%clk 0:00:12.3]} 53... Ra3+ {[%clk
0:00:03.8]} 54. Kg4 {[%clk 0:00:12.5]} 54... Ne6 {[%clk 0:00:04.1]} 55. Rf6
{[%clk 0:00:11.8]} 55... Nxd4 {[%clk 0:00:03.2]} 56. g6 {[%clk 0:00:12.2]} 56...
Ra4 {[%clk 0:00:03.9]} 57. Kg5 {[%clk 0:00:11.4]} 57... Nb5 {[%clk 0:00:01.2]}
58. g7 {[%clk 0:00:11.5]} 58... Ra1 {[%clk 0:00:01.2]} 59. Rf4 {[%clk
0:00:10.3]} 59... Rg1+ {[%clk 0:00:02.1]} 60. Rg4 {[%clk 0:00:11.1]} 60... Rf1
{[%clk 0:00:02.4]} 61. g8=Q {[%clk 0:00:10.7]} 61... Nd4 {[%clk 0:00:03.3]} 62.
Qc8+ {[%clk 0:00:10.1]} 62... Kb6 {[%clk 0:00:03.1]} 63. Rxd4 {[%clk 0:00:09.5]}
63... Ka7 {[%clk 0:00:02.1]} 64. Rxd6 {[%clk 0:00:08.6]} 64... Rf8 {[%clk
0:00:02.2]} 65. Qxf8 {[%clk 0:00:07.9]} 1-0